Cogmind - Beta 9.1 @@@ ROGUE MODE // 2019.10.24 @ 15:21:45 // Halloween2019/Abominations Player: Kyzrati Result: Destroyed by Lesser Abomination with Small Laser Performance ------------- Evolutions (0) 0 Regions Visited (1) 200 Robots Destroyed (7) 35 Value Destroyed (224) 224 Prototype IDs (0) 0 Alien Tech Used (0) 0 Bonus (0) 0 TOTAL SCORE: 459 Bonus ------- None Cogmind --------- Core Integrity 0/250 Matter 290/300 Energy 125/125 System Corruption 1% Temperature Cool (6) Location -10/Materials Parts ------- Power (1) Light Ion Engine Propulsion (2) Light Treads Aluminum Leg Utility (2) Small Storage Unit Small Storage Unit Weapon (2) Inventory (8) Aluminum Leg Aluminum Leg Large Matter Pod (53) Peak State ------------ Power Light Ion Engine Propulsion Wheel Compact Wheel Utility Small Storage Unit Small Storage Unit Weapon Assault Rifle Light Assault Rifle Inventory Light Treads Light Treads Aluminum Leg Assault Rifle [Rating: 7] Favorites ----------- Power Light Ion Engine Engine Light Ion Engine Propulsion Wheel Treads Light Treads Leg Aluminum Leg Wheel Wheel Utility Small Storage Unit Storage Small Storage Unit Weapon Light Assault Rifle Ballistic Gun Light Assault Rifle Build | -11 -10 ------- Run | Scr Mat Slots Evolved . | . . Power . | . . Propulsion . | . . Utility . | . . Weapon . | . . Parts Attached 14 | 7 7 Power 2 | 1 1 Engine 2 | 1 1 Core . | . . Reactor . | . . Propulsion 6 | 2 4 Treads 2 | . 2 Leg 1 | . 1 Wheel 3 | 2 1 Hover . | . . Flight . | . . Utility 2 | 2 . Device . | . . Storage 2 | 2 . Processor . | . . Hackware . | . . Protection . | . . Artifact . | . . Weapon 4 | 2 2 Energy Gun . | . . Energy Cannon . | . . Ballistic Gun 4 | 2 2 Ballistic Cannon . | . . Launcher . | . . Special Weapon . | . . Impact Weapon . | . . Slashing Weapon . | . . Piercing Weapon . | . . Special Melee Weapon . | . . Unidentified Prototypes . | . . Parts Lost 9 | . 9 Power 1 | . 1 Propulsion 4 | . 4 Utility . | . . Weapon 4 | . 4 Highest Loss Streak 9 | . 9 Average Slot Usage (%) 91 | . 91 Engine 14 | . 14 Treads 11 | . 11 Wheel 15 | . 15 Storage 28 | . 28 Ballistic Gun 20 | . 20 Naked Turns . | . . Heaviest Build 14 | 14 14 Greatest Support 40 | 26 40 Greatest Overweight (x) 1 | . 1 Average Overweight (x) . | . . Largest Inventory Capacity 8 | 8 8 Average Capacity 7 | 6 8 Most Carried 8 | 6 8 Average Carried 4 | 3 5 Final Capacity 8 | . 8 Final Carried 3 | . 3 Class Distribution -------------------- 100% | Mutant Dominant Class ---------------- Mutant | -10/Materials Resources | -11 -10 ----------- Run | Scr Mat Matter Collected 396 | 282 114 Remotely . | . . Salvage Created 208 | 69 139 Parts 11 | 1 10 Haulers Intercepted . | . . Recyclers Shooed . | . . Parts Field Recycled . | . . Retrieved Matter . | . . Parts Self-Destructed . | . . Prevented . | . . Kills | -11 -10 ------- Run | Scr Mat Combat Hostiles Destroyed 6 | . 6 Guns 2 | . 2 AOE 4 | . 4 Classes Destroyed 4 | 1 3 Recycler 1 | 1 . Swarmer 2 | . 2 Grunt 2 | . 2 Abomination 2 | . 2 Best Kill Streak 4 | 1 4 Combat Bots Only 4 | . 4 Max Kills in Single Turn 4 | 1 4 Gunslinging . | . . Exploded 4 | . 4 Melee . | . . Uniques/NPCs Destroyed . | . . Combat | -11 -10 -------- Run | Scr Mat Damage Taken 1175 | . 1175 Core 252 | . 252 Absorbed by Shields . | . . Core Remaining (%) 100 | 100 . Volleys Fired 15 | 3 12 Largest 2 | 2 2 Hottest 40 | 40 40 Shots Fired 30 | 6 24 Gun 30 | 6 24 Cannon . | . . Launcher . | . . Special . | . . Kinetic 30 | 6 24 Thermal . | . . Explosive . | . . Electromagnetic . | . . Robot Hit Streak 12 | 2 12 Robot Miss Streak 2 | 2 2 Penetration Max . | . . Secondary Targets . | . . Shots Hit Robots 19 | 4 15 Core Hits 12 | 2 10 Critical Hits 1 | . 1 Critical Kills 1 | . 1 Critical Parts Destroyed . | . . Melee Attacks . | . . Impact . | . . Slashing . | . . Piercing . | . . Sneak Attacks . | . . Combat Hostiles . | . . Follow-up Attacks . | . . Damage Inflicted 692 | 42 650 Guns 190 | 42 148 Cannons . | . . Explosions 493 | . 493 Melee . | . . Ramming 9 | . 9 Kinetic 190 | 42 148 Thermal . | . . Explosive 493 | . 493 Electromagnetic . | . . Impact . | . . Slashing . | . . Piercing . | . . Highest Corruption 1 | . 1 Average Corruption 1 | . 1 Corruption Purged . | . . Effects 1 | . 1 Message Errors 1 | . 1 Overload Shots . | . . Overflow Damage 19 | . 19 Projectiles . | . . Explosions 19 | . 19 Melee . | . . Knockbacks . | . . Impact . | . . Kinetic . | . . Secondary . | . . Self-Inflicted Damage 112 | . 112 Shots 1 | . 1 Rammed 1 | . 1 Targets Rammed 1 | . 1 Kicked . | . . Crushed . | . . Highest Temperature 12 | . 12 Average Temperature 8 | . 8 Received Heat Transfer 174 | . 174 Siege Activations . | . . Robots Corrupted . | . . Combat Hostiles . | . . Parts Fried . | . . Impact Corruptions . | . . Robots Melted . | . . Combat Hostiles . | . . Parts Melted . | . . Heat Transferred . | . . Parts Sabotaged . | . . Parts Stolen . | . . Parts Stripped . | . . Power Chain Reactions . | . . Missiles Intercepted . | . . Alert | -11 -10 ------- Run | Scr Mat Peak Influence 103 | 5 103 Average Influence 27 | 2 37 Maximum Alert Level . | . . Low Security (%) 100 | . . Level 1 . | . . Level 2 . | . . Level 3 . | . . Level 4 . | . . Level 5 . | . . High Security . | . . Max Security . | . . Squads Dispatched 6 | . 6 Investigation 2 | . 2 Extermination . | . . Reinforcement 4 | . 4 Assault . | . . Garrison . | . . Intercept . | . . Construction Impeded . | . . Haulers Reinforced . | . . Stealth | -11 -10 --------- Run | Scr Mat Distress Signals 1 | . 1 Communications Jammed . | . . Distress Signals . | . . Times Spotted 26 | . 26 Peak Tracking Total 11 | . 11 Tactical Retreats 3 | . 3 Traps | -11 -10 ------- Run | Scr Mat Traps Triggered 1 | . 1 Indirectly . | . . Trap Hack Attempts . | . . Triggered . | . . Disarmed . | . . Reprogrammed . | . . Reused . | . . Traps Extracted . | . . Installed . | . . Triggered . | . . Machines | -11 -10 ---------- Run | Scr Mat Machines Disabled 1 | . 1 Max in Single Turn 1 | . 1 Machines Sabotaged . | . . Garrisons Compromised . | . . Overloaded Fab Kills . | . . Fab Network Shutdowns . | . . Hacking | -11 -10 --------- Run | Scr Mat Machines Accessed . | . . Terminals . | . . Fabricators . | . . Repair Stations . | . . Recycling Units . | . . Scanalyzers . | . . Garrison Access . | . . Total Hacks . | . . Successful . | . . Failed . | . . Catastrophic . | . . Database Lockouts . | . . Manual . | . . Terminals . | . . Fabricators . | . . Repair Stations . | . . Recycling Units . | . . Scanalyzers . | . . Garrison Access . | . . Terminal Hacks . | . . Fabricator Hacks . | . . Repair Station Hacks . | . . Recycling Unit Hacks . | . . Scanalyzer . | . . Garrison Access Hacks . | . . Unauthorized Hacks . | . . Terminals . | . . Fabricators . | . . Repair Stations . | . . Recycling Units . | . . Scanalyzers . | . . Garrison Access . | . . Data Cores Recovered . | . . Used . | . . Hacking Detections . | . . Full Trace Events . | . . Feedback Events . | . . Feedback Blocked . | . . Robot Schematics Acquired . | . . Robots Built . | . . Matter . | . . Time . | . . Total Robot Build Rating . | . . Part Schematics Acquired . | . . Parts Built . | . . Matter . | . . Time . | . . Total Part Build Rating . | . . Parts Repaired . | . . Time . | . . Parts Recycled . | . . Recycled Matter . | . . Retrieved Matter . | . . Retrieved Components . | . . Parts Scanalyzed . | . . Part Schematics Acquired . | . . Parts Damaged . | . . Bothacking | -11 -10 ------------ Run | Scr Mat Used RIF Installer . | . . Robots Hacked . | . . Non-combat . | . . Combat . | . . Robot Hacks Applied . | . . Relay Couplers Released . | . . Robots Rewired . | . . Allies Hacked . | . . Hacks Repelled . | . . Allies | -11 -10 -------- Run | Scr Mat Total Allies . | . . Largest Group . | . . Highest-Rated Group . | . . Highest-Rated Ally . | . . Total Orders . | . . Ally Attacks . | . . Total Damage . | . . Kills . | . . Allies Corrupted . | . . Allies Melted . | . . Intel | -11 -10 ------- Run | Scr Mat Robot Analysis Total . | . . Derelict Logs Recovered . | . . Drone Launches . | . . Drone Recoveries . | . . Exploration | -11 -10 ------------- Run | Scr Mat Turns Passed 249 | 66 183 Spaces Moved 186 | 47 139 Core 2 | 2 . Treads 13 | . 13 Legs 4 | . 4 Wheels 167 | 45 122 Hover . | . . Flight . | . . Fastest Speed 50 | 50 90 Average Speed 95 | 89 98 Slowest Speed 160 | 100 160 Overloaded Moves . | . . Propulsion Burnouts . | . . Robots Hopped . | . . Cave-ins Triggered . | . . Exploration Rate (%) 20 | 3 38 Regions Visited 1 Branch Regions . Pre-discovered Areas . | . . Known Exits Taken . | . . Unknown Exits Taken 1 | 1 . Scrap Searched . | . . Spaces Dug . | . . Terrain Destroyed 35 | . 35 Melee . | . . Projectile . | . . AOE 35 | . 35 Actions | -11 -10 --------- Run | Scr Mat Total 226 | 62 164 Wait . | . . Move 185 | 46 139 Hop . | . . Pick Up 10 | 6 4 Fast Attach 8 | 7 1 Attach 6 | . 6 Detach . | . . Swap . | . . Drop 1 | . 1 Fire 15 | 3 12 Melee . | . . Ram 1 | . 1 Kick . | . . Crush . | . . Escape Stasis . | . . Rewire . | . . Trap . | . . Miscellaneous . | . . Route ------- -11/Scrapyard -10/Materials (discovered 1 exit: [*Mat]) History --------- Turn | Location | Event 24 | -11/Scrapyard | Discovered new exit (range 15) 67 | -11/Scrapyard | Entered Materials 207 | -10/Materials | Core integrity fell below 50% 229 | -10/Materials | Core integrity fell below 20% 240 | -10/Materials | Discovered new exit (range 12) 250 | -10/Materials | Destroyed by Lesser Abomination with Small Laser Last Messages --------------- 00205_ Lesser Abomination absorbs Structural Scanner. 00206_ Acquired 20 matter. 00208_ Lesser Abomination spits out Wheel. 00208_ Lesser Abomination absorbs Wheel. 00208_ Lgt. Treads destroyed. 00208_ Lesser Abomination destroyed. 00209_ Lesser Abomination absorbs Lgt. Ion Engine. 00209_ Lgt. Assault Rifle destroyed. 00211_ Lesser Abomination absorbs Flight Unit. 00211_ Acquired Wheel. 00214_ G-34 Mercenary destroyed. 00215_ Lesser Abomination absorbs Imp. Treads. 00216_ Unstable Anomaly suddenly flashes brightly. 00216_ Lgt. Ion Engine destroyed. 00219_ Acquired 48 matter. 00219_ Acquired 16 matter. 00222_ Lesser Abomination sneak attacks. 00223_ K-01 Serf destroyed. 00240_ EXIT=FOUND 00244_ Wheel destroyed. Map ----- +----------------------------------------------------+ | ??????????# ##### # #???#### | | ??????????#### ### #####/#####??? | | ?????????????# "### ## #?? | | ?????????????# " % # """ #?? | | ?????# ### " # R" #? | | ?????# % T# """ #? | | ?????# ### "# %% # | | ?????????????# " ###+## | | ?????????????# "# % / | | ?????????????# # ### ######## | | ?????????????# ## #?# ######## | | ?????????????# #### # | | ?????????????# #??#### # # ######## | | ?????????????# #?????##### + #??????? | | ?????????????# #?????????# # #??????? | | ?????????????# #?????????# # #??????? | | ???????####### #?????????# # #??????? | | ???????+ #?????????# # #??????? | | ???????# #?????????###?### #??????? | | ???????# A#######?????????# #??????? | | ???????# #?????????# #??????? | | ???????+ #????????? ??????? | | ???????# #????????? | ??????? | | ???????### A #?????????% ??????? | | ?????????# A #????????%] ??????? | | ?????????# @ #???????? ??????? | | ?????????# #### #???????? #%= #??????? | | ?????????# ???# #??????????= ???????? | | ?????????# ???# < #????????????????????? | | ?????????# ???# #????????????????????? | | ?????????# ???#####????????????????????? | | ?????????# ????????????????????????????? | | ?????????####+????????????????????????????? | | ??????????????????????????????????????????? | | ??????????????????????????????????????????? | | ??????????????????????????????????????????? | | ??????????????????????????????????????????? | | ??????????????????????????????????????????? | | | | | | | | | | | | | | | | | | | | | | | | | +----------------------------------------------------+ Best States ------------- Heat Dissipation 25 Energy Generation 10 Energy Capacity 125 Matter Stores 300 Matter Capacity 300 Sight Range 16 Terrain Scan Density 10 Evasion (%) 42 Recoil Reduction 2 Item Schematics ----------------- None Robot Schematics ------------------ None Fabricated ------------ Nothing Alien Tech Used ----------------- None Achievements -------------- None Challenges ------------ None Game ------ Seed PoweredCentriumWand Manual? 0 Play Time 00:06:54 Cumulative 175.4 hours Start 2019.10.24 @ 15:18:06 End 2019.10.24 @ 15:21:45 Sessions 1 Manual Loads 0 Difficulty Rogue Special Mode Halloween2019/Abominations Game No. 65 Rogue 65 Adventurer 0 Explorer 0 Win Type - Total 12 Types 9/0/1/1/0/1/0 Lore% 29 Gallery% 69 Achievement% 72 Wizard Run 0 Options --------- ASCII 1 Keyboard 1 Movement Numpad Keybinds 0 Fullscreen 2 Font 20/SmallcapsGlow Map View 66x50 Tactical HUD 1 Map Filters NONE Filters NONE Steam 1 RUN: 6e895435-d1dc-4599-81fb-50180b7a7944